{"text_format":"1","workbook":"xlsx","n_sheets":1,"sheets":["formularz cenowy"],"not_rendered":{"charts":0,"images":2,"macros":0,"external_links":0,"defined_names":11,"comments":0,"pivot_tables":0},"unopened":[],"bounds":{"document_bytes":16777216,"sheet_cells":100000,"rows_first":2000,"rows_last":500,"rows_between":2000,"halvings":0,"cell_chars":16384,"cell_head_chars":4096},"cells_cut":0,"cells_raw":0,"read":"whole","date_system":"1900"}

{"sheet":"formularz cenowy","index":0,"n_rows":17,"n_cols":11,"rows_kept":17,"cut":false,"hidden":false,"merged":[[16,7,16,10],[0,7,0,10],[1,1,1,10],[2,1,2,10],[13,1,13,10],[11,1,11,6],[14,1,14,10]]}
[null,null,null,null,null,null,null,"Załącznik nr 2.2. do SIWZ"]
[null,"FORMULARZ CENOWY"]
[null,"Część 2 – Zakup, dostawa i montaż sprzętu audio i video z oprogramowaniem."]
[null,"Lp.","Rodzaj sprzętu, oprogramowania","Jednostka\nmiary","Ilość","Marka i model oferowanego sprzętu, oprogramowania","Cena jednostkowa netto","Wartość netto\n(kol. 4 x kol. 6)","Stawka VAT\n(%)","Wartość \nVAT\n(od kol. 7)","Wartość brutto\n(kol. 7 + 9)"]
[null,1,2,3,4,5,6,7,8,9,10]
[null,1,"Zestaw do monitoringu\n - wg wymagań poz. 1 Szczegółowego opisu przedmiotu zamówienia - Część 2","zestaw",1,null,null,{"$f":"E6*G6","v":0},null,{"$f":"H6*I6","v":0},{"$f":"H6+J6","v":0}]
[null,2,"Zestaw do streamowania/learningu\n - wg wymagań poz. 2 Szczegółowego opisu przedmiotu zamówienia - Część 2","zestaw",1,null,null,0,null,0,0]
[null,3,"Zestaw nagłośnienia mobilnego\n - wg wymagań poz. 3 Szczegółowego opisu przedmiotu zamówienia - Część 2","zestaw",1,null,null,0,null,0,0]
[null,4,"Nagłośnienie auli\n - wg wymagań poz. 4 Szczegółowego opisu przedmiotu zamówienia - Część 2","zestaw",1,null,null,0,null,0,0]
[null,5,"Nagłośnienie sali\n - wg wymagań poz. 5 Szczegółowego opisu przedmiotu zamówienia - Część 2","zestaw",1,null,null,0,null,0,0]
[null,6,"System sterowania w auli\n - wg wymagań poz. 6 Szczegółowego opisu przedmiotu zamówienia - Część 2","zestaw",1,null,null,0,null,0,0]
[null,"Razem:  ",null,null,null,null,null,{"$f":"SUM(H6:H11)","v":0},"X",{"$f":"SUM(J6:J11)","v":0},{"$f":"SUM(K6:K11)","v":0}]
[]
[null,"Zaoferowany sprzęt, oprogramowanie spełniają wymagania określone w Szczegółowym opisie przedmiotu zamówienia, stanowiącym załącznik nr 5.2.do SIWZ."]
[]
[]
[null,null,"                            ……………………… dnia ………………                                                                                                                                                                  \n                                       (miejscowość)                                                                                                                                                                                                         ",null,null,null,null,"                                                                                                                                                                                     ................…………………………….\n(podpis i pieczątka uprawomocnionego                                                                                                                                                                                                                           przedstawiciela Wykonawcy)\n"]